bitfinex/quotes_ETHUSD_20220113
["timestamp","ask_amount","ask_price","bid_price","bid_amount"]
[1642109971909,0.44,3270.0,3269.9,0.71501679]
[1642109972097,0.44,3270.0,3269.9,0.72581683]
[1642109972303,1.20468,3270.0,3269.9,0.71501679]
[1642109972498,1.20468,3270.0,3269.9,0.72581683]
[1642109972898,0.44,3270.0,3269.9,0.72581683]
[1642109973100,0.167763,3270.3,3269.9,1.19724781]
[1642109973297,0.045463,3270.3,3270.0,2.4658677]
[1642109973503,1.56055652,3270.5,3270.1,0.1223]
[1642109973504,1.60601952,3270.5,3270.1,0.1223]
[1642109973699,1.60601952,3270.5,3270.1,0.1319632]
[1642109973897,1.60601952,3270.5,3270.2,0.00909477]
[1642109974099,0.045463,3270.5,3270.2,0.00909477]
[1642109974498,0.045463,3270.5,3270.1,0.0096632]
[1642109974899,3.077863,3270.7,3270.1,0.0096632]
[1642109976335,3.077863,3270.7,3270.3,0.71501679]
[1642109976736,3.842343,3270.7,3270.4,0.00795793]
[1642109976934,0.809943,3270.7,3270.4,0.00795793]
[1642109977537,0.809943,3270.7,3270.5,0.71501679]
[1642109977735,1.368963,3270.8,3270.5,0.71501679]
[1642109978035,1.668963,3270.8,3270.6,0.00682108]
[1642109978234,0.467763,3270.8,3270.6,0.00682108]
[1642109978437,0.167763,3270.8,3270.6,0.00682108]
[1642109978638,0.167763,3270.8,3270.6,0.72183787]
[1642109979036,0.167763,3270.8,3270.7,0.00625265]
[1642109979482,0.932213,3270.8,3270.7,0.72126944]
[1642109979680,1.232213,3270.8,3270.7,0.72126944]
[1642109983635,1.18675,3270.8,3270.7,0.72126944]
[1642109984237,0.4223,3270.8,3270.7,0.72126944]
[1642109984435,0.1223,3270.8,3270.7,0.72126944]
[1642109987190,0.1223,3270.8,3270.7,0.00625265]
[1642109987390,3.1555785,3270.9,3270.7,0.00625265]
[1642109987590,3.1555785,3270.9,3269.9,0.13300004]
[1642109987790,0.809953,3270.7,3270.0,0.01023162]
[1642109988591,1.5744712,3270.7,3270.0,0.01023162]
[1642109988791,0.76454,3270.6,3270.0,0.01023162]
[1642109988993,0.045463,3270.5,3270.0,0.01023162]
[1642109989192,0.76454,3270.4,3270.1,0.68492686]
[1642109989692,0.76454,3270.4,3270.2,0.00909477]
[1642109990092,1.9034535,3270.3,3270.2,0.00909477]
[1642109990936,2.2034535,3270.3,3270.2,0.00909477]
[1642109991135,2.2034535,3270.3,3270.2,0.69402163]
[1642109991337,2.3257535,3270.3,3270.2,0.69402163]
[1642109992136,2.3257535,3270.3,3270.2,0.00909477]
[1642109992539,2.3257535,3270.3,3269.8,0.01136847]
[1642109992839,0.76458,3270.2,3269.8,0.01136847]
[1642109993638,0.76458,3270.2,3269.6,0.01250531]
[1642109994689,0.66458,3270.2,3269.6,0.01250531]
[1642109995386,1.90350474,3270.1,3269.6,0.01250531]
[1642109995586,1.94896774,3270.1,3269.6,0.01250531]
[1642109995788,2.71356774,3270.1,3269.6,0.01250531]
[1642109996287,0.045463,3270.1,3269.6,0.01250531]
[1642109996487,0.045463,3270.1,3269.7,0.1223]
[1642109996690,0.045463,3270.3,3269.7,0.1223]
[1642109996888,0.045463,3270.3,3269.8,0.01136847]
[1642109997286,0.045463,3270.3,3269.6,0.01250531]
[1642109998149,1.90346663,3270.2,3269.6,0.01250531]
[1642109998340,2.02576663,3270.2,3269.6,0.01250531]
[1642109998540,2.32576663,3270.2,3269.6,0.01250531]
[1642109999143,3.09033663,3270.2,3269.6,0.01250531]
[1642110000344,1.90346663,3270.1,3269.6,0.01250531]
[1642110000545,2.71352963,3270.1,3269.6,0.01250531]
[1642110001888,1.90346663,3270.0,3269.6,0.01250531]
[1642110002488,4.07803663,3270.0,3269.6,0.01250531]
[1642110002787,0.045463,3269.8,3269.4,0.01364216]
[1642110002989,0.44,3269.7,3269.4,0.01364216]
[1642110003188,0.045463,3269.6,3269.2,0.01477901]
[1642110003388,0.485463,3269.6,3269.2,0.01477901]
[1642110005291,1.250193,3269.6,3269.0,0.01591585]
[1642110006132,1.250193,3269.6,3269.0,1.5619558]
[1642110006533,1.250193,3269.6,3269.1,0.01534743]
[1642110008735,1.250193,3269.6,3269.2,0.68168612]
[1642110009135,0.345463,3269.5,3269.3,0.01421058]
[1642110009391,0.467763,3269.5,3269.3,0.01421058]
[1642110009891,0.045463,3269.8,3269.4,0.44996239]
[1642110010092,1.3571,3269.9,3269.4,0.44996239]
[1642110010292,1.2348,3269.9,3269.5,2.40807983]
[1642110010493,1.2348,3269.9,3269.5,0.01307374]
[1642110010691,1.2348,3269.9,3269.6,0.01250531]
[1642110010892,1.2348,3269.9,3269.5,0.01307374]
[1642110011894,1.2348,3269.9,3269.6,0.68168612]
[1642110012097,0.167763,3270.1,3269.6,0.68168612]
[1642110012295,0.167763,3270.1,3269.7,0.01193689]
[1642110013238,0.045463,3270.3,3269.8,0.1223]
[1642110013440,1.56055652,3270.5,3269.8,0.1223]
[1642110013637,2.41693727,3270.7,3269.9,0.01080004]
[1642110013839,2.41693727,3270.7,3269.9,4.02016373]
[1642110014138,2.41693727,3270.7,3270.0,1.45634091]
[1642110014338,2.41693727,3270.7,3270.1,2.9666992]
[1642110014538,2.41693727,3270.7,3270.2,1.0]
[1642110014741,2.41693727,3270.7,3270.4,0.7642195]
[1642110014937,2.41693727,3270.7,3270.5,0.76422]
[1642110015137,2.41693727,3270.7,3270.5,0.7716095]
[1642110015338,2.41693727,3270.7,3270.6,0.00682108]
[1642110015537,0.045463,3271.1,3270.6,0.00682108]
[1642110015538,0.045463,3271.1,3270.6,2.93510745]
[1642110015738,0.045463,3271.2,3270.7,0.76421]
[1642110015937,0.045463,3271.4,3270.7,0.77046265]
[1642110016138,0.167663,3271.4,3270.8,0.76989423]
[1642110016539,0.167663,3271.4,3270.9,0.00511581]
[1642110017188,0.167663,3271.4,3270.9,0.76421]
[1642110017392,0.045463,3271.4,3270.9,0.76421]
[1642110017590,0.167663,3271.5,3271.0,0.00454738]
[1642110019391,0.167663,3271.5,3271.0,0.76874738]
[1642110019591,1.56055652,3271.4,3271.1,0.68168612]
[1642110019995,1.56055652,3271.4,3271.2,0.00341054]
[1642110020841,1.60601952,3271.5,3271.2,0.00341054]
[1642110023646,1.60601952,3271.5,3271.0,0.6862335]
[1642110024049,1.60601952,3271.5,3271.0,0.00454738]
[1642110024388,0.045463,3271.5,3271.0,0.00454738]
[1642110025792,0.045463,3271.5,3271.0,0.76871738]
[1642110025992,0.045463,3271.5,3271.0,0.00454738]
[1642110026192,1.8822482,3271.4,3271.0,0.00454738]
[1642110027095,1.8822482,3271.4,3271.1,0.72795571]
[1642110027395,1.8822482,3271.4,3271.2,0.00341054]
[1642110034291,1.9277112,3271.4,3270.9,0.00511581]
[1642110035839,1.8822482,3271.3,3271.0,0.72795571]
[1642110036739,1.8822482,3271.3,3270.9,0.00511581]
[1642110037139,1.8822482,3271.3,3270.9,0.76930581]
[1642110037338,1.8822482,3271.3,3270.9,0.00511581]
[1642110037539,1.8822482,3271.3,3271.0,0.00454738]
[1642110037739,1.8822482,3271.3,3270.9,0.00511581]
[1642110037942,1.8822482,3271.3,3271.0,0.72795571]
[1642110038940,1.8822482,3271.3,3270.9,0.00511581]
[1642110039587,1.8822482,3271.3,3271.1,0.72795571]
[1642110039988,1.9277112,3271.3,3271.2,0.00341054]
[1642110040388,1.8822482,3271.3,3271.2,0.00341054]
[1642110040688,1.8822482,3271.3,3271.0,0.00454738]
[1642110042093,1.9277112,3271.3,3271.1,0.72795571]
[1642110042491,1.9277112,3271.3,3271.2,0.00341054]
[1642110042892,0.045463,3271.3,3271.2,0.00341054]
[1642110043344,0.045463,3271.3,3270.8,1.53414423]
[1642110043547,0.045463,3271.3,3271.2,0.00341054]
[1642110043744,0.045463,3271.3,3270.9,0.00511581]
[1642110043945,0.167663,3271.4,3270.9,0.00511581]
[1642110044145,0.167663,3271.4,3270.9,1.53351581]
[1642110044146,0.045463,3271.3,3270.9,1.53351581]
[1642110044545,0.045463,3271.3,3271.0,0.00454738]
[1642110045546,0.045463,3271.3,3271.1,0.72795571]
[1642110046049,0.045463,3271.3,3271.2,0.00341054]
[1642110047890,0.045463,3271.3,3271.0,0.00454738]
[1642110048291,0.045463,3271.3,3271.0,0.73250309]
[1642110051240,0.045463,3271.3,3271.0,1.49670309]
[1642110051639,0.045463,3271.3,3271.0,2.26090309]
[1642110052840,0.045463,3271.3,3271.1,0.72795571]
[1642110053242,0.045463,3271.3,3271.2,0.00341054]
[1642110055089,1.56055652,3271.4,3271.2,0.00341054]
[1642110055891,0.045463,3271.5,3271.2,0.00341054]
[1642110056890,1.60601952,3271.5,3271.2,0.00341054]
[1642110058537,1.80996201,3271.4,3271.2,0.00341054]
[1642110061143,1.70996201,3271.4,3271.2,0.00341054]
[1642110061345,0.045463,3271.5,3271.2,0.00341054]
[1642110061646,1.60601952,3271.5,3271.2,0.00341054]
[1642110062693,1.60601952,3271.5,3271.0,1.53299378]
[1642110062892,1.65148252,3271.5,3271.0,1.53299378]
[1642110063094,0.045463,3271.5,3271.0,1.53299378]
[1642110063694,0.045463,3271.5,3271.1,0.7641993]
[1642110063894,1.60601952,3271.5,3271.1,1.5283793]
[1642110064100,1.60601952,3271.5,3271.2,0.00341054]
[1642110064898,1.60601952,3271.5,3271.1,1.528393]
[1642110065300,0.045463,3271.5,3271.2,0.00341054]
[1642110066339,0.045463,3271.4,3271.2,0.00341054]
[1642110066549,0.045463,3271.4,3271.0,0.00454738]
[1642110068543,0.045463,3271.4,3271.2,0.1]
[1642110068941,0.045463,3271.4,3271.3,0.00284211]
[1642110069793,0.045463,3271.5,3271.3,0.00284211]
[1642110073537,1.60601952,3271.5,3271.3,0.00284211]
[1642110073938,1.60601952,3271.5,3271.3,0.76701211]
[1642110074137,0.045463,3271.5,3271.3,0.76701211]
[1642110074339,0.045463,3271.5,3271.4,0.00227369]
[1642110076887,0.045463,3271.5,3271.3,0.00284211]
[1642110078291,0.045463,3271.5,3271.3,0.76702211]
[1642110078692,0.045463,3271.5,3271.4,0.00227369]
[1642110079495,0.045463,3271.5,3271.3,0.00284211]
[1642110080298,1.60601952,3271.5,3271.3,0.00284211]
[1642110080941,1.60601952,3271.5,3271.3,0.76702211]
[1642110081342,1.60601952,3271.5,3271.4,0.00227369]
[1642110081539,0.045463,3271.5,3271.4,0.00227369]
[1642110082341,0.045463,3271.5,3271.4,0.92655257]
[1642110085493,0.045463,3271.5,3271.4,0.00227369]
[1642110086294,0.045463,3271.5,3271.4,0.92655257]
[1642110093395,1.56055652,3271.7,3271.4,0.92655257]
[1642110093599,0.045463,3271.6,3271.4,0.92655257]
[1642110093797,0.045463,3271.6,3271.5,0.00170527]
[1642110094197,0.045463,3271.6,3271.5,0.92598415]
[1642110095000,0.045463,3271.6,3271.5,0.00170527]
[1642110097442,1.70665533,3271.6,3271.5,0.00170527]
[1642110098041,0.045463,3271.6,3271.5,0.00170527]
[1642110099246,1.70665533,3271.6,3271.5,0.00170527]
[1642110099690,0.045463,3271.6,3271.5,0.00170527]
[1642110100090,0.045463,3271.6,3271.4,0.00227369]
[1642110100692,1.70665533,3271.6,3271.5,0.92427888]
[1642110100995,1.70665533,3271.6,3271.5,0.92598415]
[1642110101593,1.70665533,3271.6,3271.5,0.00170527]
[1642110102893,3.27656384,3271.6,3271.5,0.00170527]
[1642110104352,3.23110084,3271.6,3271.5,0.00170527]
[1642110104549,3.23110084,3271.6,3271.5,0.12390527]
[1642110104749,3.23110084,3271.6,3271.5,2.74972476]
[1642110104948,0.49240084,3271.6,3271.5,11.14972476]
[1642110105150,0.49240084,3271.6,3271.5,12.14972476]
[1642110105348,2.36127019,3271.8,3271.5,3.74972476]
[1642110105548,2.36127019,3271.8,3271.7,3.56391]
[1642110105748,0.045463,3272.0,3271.7,5.87931892]
[1642110105948,0.045463,3272.1,3271.7,2.06391]
[1642110106151,0.045463,3272.1,3271.7,2.68601891]
[1642110106449,0.00113685,3272.0,3271.7,2.68601891]
[1642110106647,0.00113685,3272.0,3271.8,1.0]
[1642110106889,0.00113685,3272.0,3271.8,1.76389]
[1642110107095,0.00113685,3272.0,3271.9,2.63955203]
[1642110107290,0.00113685,3272.0,3271.9,0.3]
[1642110107492,0.00113685,3272.0,3271.9,2.06391]
[1642110107691,0.00113685,3272.0,3271.9,4.39946554]
[1642110107890,0.00113685,3272.0,3271.9,2.06391]
[1642110108491,0.00113685,3272.0,3271.9,4.53762413]
[1642110109894,0.00113685,3272.0,3271.9,2.18611]
[1642110113044,0.00113685,3272.0,3271.9,4.52550147]
[1642110113249,0.00113685,3272.0,3271.9,6.45188886]
[1642110114249,0.00113685,3272.0,3271.9,4.52550147]
[1642110114691,0.00113685,3272.0,3271.9,2.06391]
[1642110115792,0.00113685,3272.0,3271.9,0.76391]
[1642110115992,0.00113685,3272.0,3271.9,1.06391]
[1642110116396,0.00113685,3272.0,3271.9,2.06391]
[1642110117194,0.00113685,3272.0,3271.9,4.39774663]
[1642110119547,0.00113685,3272.0,3271.9,2.06391]
[1642110120348,0.00113685,3272.0,3271.9,4.40156328]
[1642110120748,0.00113685,3272.0,3271.9,2.06391]
[1642110125201,0.00113685,3272.0,3271.9,3.35435568]
[1642110125839,0.00113685,3272.0,3271.9,5.68823227]
[1642110126039,0.00113685,3272.0,3271.9,3.35435568]
[1642110127240,0.00113685,3272.0,3271.9,5.68063701]
[1642110127640,0.00113685,3272.0,3271.9,3.35435568]
[1642110129394,0.00113685,3272.0,3271.9,5.69992309]
[1642110129595,0.00113685,3272.0,3271.9,4.40947741]
[1642110131898,0.00113685,3272.0,3271.9,3.40947741]
[1642110132098,0.00113685,3272.0,3271.9,1.06391]
[1642110132500,0.04659985,3272.0,3271.9,1.06391]
[1642110132697,0.00113685,3272.0,3271.9,1.06391]
[1642110136241,0.045463,3272.1,3271.9,1.06391]
[1642110136540,0.04716827,3272.1,3272.0,0.76393]
[1642110136744,1.3699569,3272.1,3272.0,0.76393]
[1642110137597,1.3244939,3272.1,3272.0,0.76393]
[1642110138598,1.1744939,3272.1,3272.0,0.76393]
[1642110138798,0.045463,3272.4,3272.0,0.76393]
[1642110138999,0.045463,3272.4,3272.1,1.5278958]
[1642110139200,1.3479,3272.7,3271.9,3.0557147]
[1642110139201,0.045463,3272.2,3271.9,3.0557147]
[1642110139401,0.045463,3272.0,3271.9,1.52786]
[1642110139600,0.045463,3272.0,3271.6,1.5279904]
[1642110139899,0.12504212,3272.6,3271.9,0.00113684]
[1642110140199,0.045463,3272.0,3271.9,0.76512684]
[1642110140399,0.045463,3272.2,3271.9,1.52912734]
[1642110140651,0.1222,3272.4,3271.9,0.76512734]
[1642110140841,0.04716827,3272.4,3271.9,0.76512734]
[1642110141444,0.00170527,3272.4,3271.9,0.76512734]
[1642110141742,0.045463,3272.3,3272.0,0.76395]
[1642110141946,0.045463,3272.3,3272.1,0.76394]
[1642110142642,0.04716827,3272.4,3272.1,0.76394]
[1642110142845,0.00170527,3272.4,3272.1,0.76394]
[1642110143043,0.045463,3272.2,3272.1,1.5279]
[1642110143444,0.00170527,3272.4,3272.1,2.01352041]
[1642110143445,0.045463,3272.3,3272.1,2.01352041]
[1642110143645,1.57546847,3272.4,3272.2,1.64988]
[1642110143843,1.57546847,3272.4,3272.2,2.41368]
[1642110144043,1.57546847,3272.4,3272.3,5.06377]
[1642110144244,1.57546847,3272.4,3272.3,5.18597]
[1642110144500,1.57546847,3272.4,3272.3,8.29327575]
[1642110144701,1.5737632,3272.7,3272.4,4.35]
[1642110144898,2.36127019,3273.0,3272.6,5.35]
[1642110145094,2.36127019,3273.0,3272.8,0.76364]
[1642110145297,2.36127019,3273.0,3272.9,0.1222]
[1642110145695,2.36468073,3273.0,3272.9,2.54860589]
[1642110146095,2.36468073,3273.0,3272.9,3.54860589]
[1642110146696,0.00341054,3273.0,3272.9,3.54860589]
[1642110147195,0.00341054,3273.0,3272.9,1.1222]
[1642110147899,0.00341054,3273.0,3272.9,3.49496074]
[1642110150242,0.00341054,3273.0,3272.9,1.1222]
[1642110150643,0.00341054,3273.0,3272.9,3.50055865]
[1642110152498,0.00341054,3273.0,3272.9,1.0]
[1642110153599,0.00341054,3273.0,3272.8,2.94946]
[1642110154000,0.00284212,3272.9,3272.8,2.94946]
[1642110154199,0.00284212,3272.9,3272.8,2.82726]
[1642110156844,0.00284212,3272.9,3272.8,1.52726]
[1642110157045,0.04830512,3272.9,3272.8,1.52726]
[1642110157244,0.00284212,3272.9,3272.8,1.52726]
[1642110158045,0.00284212,3272.9,3272.8,1.82726]
[1642110159896,0.00284212,3272.9,3272.8,2.82726]
[1642110162205,0.00284212,3272.9,3272.8,5.20137781]
[1642110163745,0.00284212,3272.9,3272.8,2.82726]
[1642110163944,0.00284212,3272.9,3272.8,5.52684698]
[1642110164142,0.15959079,3273.3,3272.9,5.75]
[1642110164344,0.15959079,3273.3,3273.1,2.11614853]
[1642110164543,0.15959079,3273.3,3273.2,0.4222]
[1642110164943,0.16186449,3273.3,3273.2,1.4222]
[1642110165344,0.16186449,3273.3,3273.2,4.9722]
[1642110166342,0.16186449,3273.3,3273.2,3.79025495]
[1642110167592,0.16186449,3273.3,3273.2,1.4222]
[1642110167992,0.16186449,3273.3,3273.2,1.3]
[1642110171344,0.16186449,3273.3,3273.2,0.3]
[1642110171540,0.20732749,3273.3,3273.2,0.3]
[1642110172842,0.20732749,3273.3,3273.1,1.0635079]
[1642110173044,0.045463,3273.2,3273.1,1.0635079]
[1642110173243,0.04716827,3273.2,3273.1,1.0635079]
[1642110174602,1.22787707,3273.2,3273.1,2.45355409]
[1642110174801,1.27334007,3273.2,3273.1,2.45355409]
[1642110175001,1.27334007,3273.2,3273.1,1.69004619]
[1642110177304,1.27334007,3273.2,3273.1,2.45374619]
[1642110177505,1.22334007,3273.2,3273.1,2.45374619]
[1642110179646,1.22334007,3273.2,3273.1,1.69004619]
[1642110180247,1.22334007,3273.2,3273.1,1.39004619]
[1642110180649,1.17787707,3273.2,3273.1,1.39004619]
[1642110182499,1.17787707,3273.2,3273.1,1.69004619]
[1642110183502,1.17787707,3273.2,3273.1,1.81224619]
[1642110184101,1.17787707,3273.2,3273.1,2.81224619]
[1642110185751,1.12787707,3273.2,3273.1,2.81224619]
[1642110190298,1.12787707,3273.2,3273.1,2.69004619]
[1642110198899,1.12787707,3273.2,3273.1,1.69004619]
[1642110199099,1.17334007,3273.2,3273.1,1.69004619]
[1642110199698,1.12787707,3273.2,3273.1,1.39004619]
[1642110199998,1.17334007,3273.2,3273.1,1.39004619]
[1642110204400,1.12787707,3273.2,3273.1,1.39004619]
[1642110205604,1.12787707,3273.2,3273.1,2.69004619]
[1642110206904,1.12787707,3273.2,3273.1,1.69004619]
[1642110208160,1.12787707,3273.2,3273.1,1.39004619]
[1642110208348,1.17334007,3273.2,3273.1,1.39004619]
[1642110209751,1.12787707,3273.2,3273.1,1.69004619]
[1642110210752,1.12787707,3273.2,3273.1,2.69004619]
[1642110212003,1.12787707,3273.2,3273.1,1.39004619]
[1642110212004,1.17334007,3273.2,3273.1,1.39004619]
[1642110213705,1.17334007,3273.2,3273.0,1.39004619]
[1642110213907,0.045463,3273.1,3273.0,1.39004619]
[1642110214106,5.395463,3273.1,3273.0,0.85014619]
[1642110214308,5.395463,3273.1,3273.0,0.00113685]
[1642110214309,3.06194389,3273.1,3273.0,0.00113685]
[1642110214604,3.06194389,3273.1,3272.3,1.5501695]
[1642110214605,3.06194389,3273.1,3272.4,0.00454739]
[1642110214805,0.045463,3272.7,3272.4,0.00454739]
[1642110215105,0.167663,3272.6,3272.4,0.00454739]
[1642110215751,0.045463,3272.6,3272.4,0.00454739]
[1642110215949,0.045463,3272.6,3272.3,1.53286581]
[1642110216149,0.045463,3272.6,3272.5,0.7638975]
[1642110216547,0.045463,3272.7,3272.5,0.76787646]
[1642110216749,0.1222,3272.6,3272.5,0.76787646]
[1642110216951,0.1222,3272.6,3272.5,0.7638975]
[1642110219052,0.045463,3272.7,3272.5,0.7638975]
[1642110219253,0.045463,3272.7,3272.4,0.76386]
[1642110219499,0.167663,3272.6,3272.1,1.52787]
[1642110219695,2.32764318,3272.9,3272.1,1.52787]
[1642110219696,0.1222,3272.8,3272.1,2.29181]
[1642110219896,0.045463,3272.5,3272.2,0.00568423]
[1642110220095,2.44984318,3272.9,3272.2,0.00568423]
[1642110220296,0.045463,3272.5,3272.2,0.00568423]
[1642110220497,0.045463,3272.5,3272.3,1.5278945]
[1642110220897,0.045463,3272.5,3272.4,0.00454739]
[1642110221699,0.045463,3272.7,3272.4,0.00454739]
[1642110222001,0.045463,3272.7,3272.4,0.76839739]
[1642110222398,0.045463,3272.7,3272.5,0.00397896]
[1642110223250,0.5622,3273.0,3272.5,0.76782586]
[1642110223251,0.045463,3272.6,3272.5,0.76782586]
[1642110223848,3.47504761,3272.9,3272.5,0.76782586]
[1642110223849,0.045463,3272.8,3272.5,0.76782586]
[1642110224050,0.045463,3272.8,3272.5,0.00397896]
[1642110224249,0.045463,3272.8,3272.6,0.00341054]
[1642110224450,0.045463,3272.8,3272.5,0.00397896]
[1642110224654,1.16947671,3272.9,3272.5,0.00397896]
[1642110224850,0.045463,3272.6,3272.5,0.00397896]
[1642110229905,0.045463,3272.6,3272.3,0.76396]
[1642110229906,0.045463,3272.6,3272.4,0.00454739]
[1642110230104,0.045463,3272.5,3272.4,0.00454739]
[1642110231950,0.045463,3272.5,3272.3,1.48245169]
[1642110233954,0.1222,3272.7,3272.2,0.76398]
[1642110233955,0.045463,3272.4,3272.2,0.76398]
[1642110234401,0.11879985,3272.7,3272.2,0.76398]
[1642110234702,0.11879985,3272.7,3272.3,0.00170527]
[1642110234904,0.11879985,3272.7,3272.3,0.76565107]
[1642110235105,0.11879985,3272.7,3272.4,1.30707589]
[1642110235302,0.11879985,3272.7,3272.4,1.30821274]
[1642110235704,0.88279985,3272.7,3272.4,1.30821274]
[1642110236004,2.35807516,3272.6,3272.4,1.30821274]
[1642110236303,3.79757516,3272.6,3272.4,1.30821274]
[1642110236503,6.94532631,3272.5,3272.4,1.30821274]
[1642110236706,7.50752631,3272.5,3272.4,1.30821274]
[1642110237706,7.50752631,3272.5,3272.4,0.00113685]
[1642110237905,3.05752631,3272.5,3272.4,0.00113685]
[1642110238159,3.05752631,3272.5,3272.0,0.00341054]
[1642110238160,0.76409,3272.3,3272.0,0.00341054]
[1642110238351,0.76409,3272.3,3271.9,0.00397896]
[1642110239552,0.76409,3272.3,3271.7,0.00511581]
[1642110239752,2.30560056,3272.2,3271.7,0.00511581]
[1642110239952,2.30827546,3272.2,3271.7,0.00511581]
[1642110240152,0.76409,3272.3,3272.0,1.30707589]
[1642110240553,0.76409,3272.3,3272.1,0.00284212]
[1642110241358,2.31292416,3272.2,3271.9,0.00397896]
[1642110241556,0.1222,3272.1,3271.9,0.00397896]
[1642110241755,3.07708416,3272.2,3272.1,1.30707589]
[1642110241998,2.31292416,3272.2,3272.1,1.30707589]
[1642110242198,2.31292416,3272.2,3272.1,1.30991801]
[1642110242400,3.07708416,3272.2,3272.1,1.30991801]
[1642110242700,0.76416,3272.2,3272.1,0.00284212]
[1642110243100,0.76416,3272.2,3271.6,0.00568423]
[1642110243401,1.52829,3272.2,3271.6,0.00568423]
[1642110243601,2.31476036,3272.1,3271.6,0.00568423]
[1642110243801,1.52829,3272.2,3271.6,1.31276012]
[1642110244200,1.52829,3272.2,3271.7,0.00511581]
[1642110244402,1.52829,3272.2,3271.7,1.3121917]
[1642110244700,1.52829,3272.2,3271.8,0.00454739]
[1642110245101,1.52829,3272.2,3271.8,1.31162328]
[1642110245507,1.52829,3272.2,3271.9,0.00397896]
[1642110245755,0.76413,3272.2,3271.9,0.00397896]
[1642110245951,3.72971228,3272.3,3271.9,0.00397896]
[1642110246150,1.3312,3272.3,3271.9,1.31105485]
[1642110246353,1.209,3272.3,3271.9,2.07506935]
[1642110246550,1.209,3272.3,3272.0,0.00341054]
[1642110247151,1.209,3272.3,3272.0,1.31048643]
[1642110247453,0.88622,3272.6,3272.1,0.00284212]
[1642110247650,0.76402,3272.6,3272.1,0.00284212]
[1642110248253,0.76402,3272.6,3272.1,1.30991801]
[1642110248651,0.76402,3272.6,3272.2,0.00227369]
[1642110249051,0.76402,3272.6,3272.2,1.30934958]
[1642110249251,3.06150369,3272.6,3272.2,1.30934958]
[1642110249700,0.76402,3272.6,3272.2,1.30934958]
[1642110249901,0.76402,3272.6,3272.2,0.00227369]
[1642110250300,0.76402,3272.6,3272.0,0.00341054]
[1642110250503,2.43520539,3272.7,3272.0,0.00341054]
[1642110250705,3.19920539,3272.7,3272.0,0.00341054]
[1642110251103,1.33045549,3272.5,3272.2,0.76398]
[1642110251304,1.33045549,3272.5,3272.0,1.27453666]
[1642110251704,1.33045549,3272.5,3272.1,0.00284212]
[1642110252104,1.33045549,3272.6,3272.1,0.00284212]
[1642110252304,1.33045549,3272.6,3272.1,0.7639776]
[1642110252703,1.33045549,3272.6,3272.2,0.00227369]
[1642110252903,0.8862,3272.7,3272.2,0.00227369]
[1642110253951,0.8862,3272.7,3272.2,1.27275126]
[1642110254552,0.8862,3272.7,3272.2,0.00227369]
[1642110255651,0.8862,3272.7,3272.2,1.27232862]
[1642110257404,1.33767121,3272.6,3272.2,1.27232862]
[1642110258505,1.33767121,3272.6,3272.2,2.03630862]
[1642110259603,1.33767121,3272.6,3272.3,1.27005493]
[1642110259802,2.10170121,3272.6,3272.3,1.27005493]
[1642110260003,2.10170121,3272.6,3272.4,0.00113685]
[1642110260203,0.1222,3272.5,3272.4,0.00113685]
[1642110261251,1.33767121,3272.6,3272.4,0.00113685]
[1642110261548,1.33767121,3272.5,3272.4,0.00113685]
[1642110262147,1.33767121,3272.5,3272.0,0.00341054]
[1642110262349,1.33767121,3272.6,3272.3,2.03400103]
[1642110262749,1.33767121,3272.6,3272.4,0.00113685]
[1642110263548,1.33767121,3272.6,3272.4,1.27119178]
[1642110266408,1.33767121,3272.7,3272.4,1.27119178]
[1642110266604,1.33767121,3272.7,3272.4,11.27119178]
[1642110268348,1.33767121,3272.7,3272.5,1.27005493]
[1642110270349,1.33767121,3272.7,3272.5,2.03398683]
[1642110271353,1.33767121,3272.7,3272.6,1.27005493]
[1642110273301,1.33767121,3272.8,3272.5,2.03398463]
[1642110273700,1.33880806,3272.8,3272.5,2.03398463]
[1642110274106,1.33880806,3272.8,3272.6,1.27005493]
[1642110276253,1.33880806,3272.8,3272.5,2.03399153]
[1642110277054,1.33880806,3272.8,3272.7,1.27005493]
[1642110277853,1.33880806,3272.8,3272.6,1.27005493]
[1642110278652,1.33880806,3272.8,3272.7,1.27005493]
[1642110279500,1.33880806,3272.8,3272.5,2.03400063]
[1642110280406,1.33880806,3272.8,3272.6,1.27005493]
[1642110283961,2.30071041,3272.7,3272.6,1.27005493]
[1642110284160,3.50474041,3272.7,3272.5,1.27005493]
[1642110284860,3.50474041,3272.7,3272.4,10.00113685]
[1642110284861,2.71157912,3272.6,3272.4,10.00113685]
[1642110285061,6.48800521,3272.5,3272.4,10.00113685]
[1642110285261,6.61020521,3272.5,3272.4,10.0]
[1642110285477,5.65,3272.4,3271.9,2.02111247]
[1642110285661,3.5422921,3272.3,3271.9,2.02111247]
[1642110285861,1.20422,3272.3,3272.0,0.00227369]
[1642110286163,0.76421,3272.2,3271.9,0.00284211]
[1642110286363,0.44,3272.1,3271.9,0.00284211]
[1642110286761,0.39,3272.1,3271.9,0.00284211]
[1642110287402,0.76418,3272.0,3271.9,0.00284211]
[1642110287602,1.20418,3272.0,3271.9,0.00284211]
[1642110288003,2.54185121,3272.0,3271.9,0.00284211]
[1642110288903,1.77767121,3272.0,3271.9,0.00284211]
[1642110292557,1.72767121,3272.0,3271.9,0.00284211]
[1642110294159,1.33767121,3272.0,3271.9,0.00284211]
[1642110294405,1.33767121,3272.0,3271.9,0.04830511]
[1642110294604,1.33767121,3272.0,3271.9,0.17050511]
[1642110295006,1.33767121,3272.5,3271.9,0.17050511]
[1642110295205,1.33767121,3272.5,3272.2,0.76394]
[1642110295403,1.33767121,3272.5,3272.4,0.045463]
[1642110296603,1.33767121,3272.5,3272.3,0.7639306]
[1642110296803,1.33880806,3272.6,3272.3,0.7639306]
[1642110297204,1.33880806,3272.6,3272.3,1.5278706]
[1642110297507,1.33880806,3272.6,3272.4,0.7639319]
[1642110299151,1.33880806,3272.6,3272.4,1.5278719]
[1642110300753,1.33880806,3272.6,3272.5,1.0501877]
[1642110302109,1.28880806,3272.6,3272.5,1.0501877]
[1642110302511,0.1222,3272.9,3272.5,1.0501877]
[1642110302910,0.00113685,3272.8,3272.5,1.8141177]
[1642110304913,0.00113685,3272.8,3272.5,0.76393]
[1642110305315,0.00113685,3272.8,3272.6,0.7639124]
[1642110306853,0.00113685,3272.8,3272.6,1.0639124]
[1642110307053,0.00113685,3272.8,3272.7,0.045463]
[1642110309509,0.00113685,3272.8,3272.7,3.2777467]
[1642110310712,1.55840891,3273.6,3272.8,3.9]
[1642110310909,1.55840891,3273.6,3273.3,0.7636045]
[1642110311110,0.00397896,3273.5,3273.3,0.8090675]
[1642110311511,0.00341054,3273.4,3273.3,0.8090675]